lending/lending_fUSD_20251022
["ID","MTS","AMOUNT","RATE_DAILY","PERIOD"]
[392078421,1761137465539,-978.8,0.00045479,120]
[392078422,1761137465549,-550.93,0.00045479,120]
[392078423,1761137465559,-500.0,0.00045479,120]
[392078424,1761137465569,-1200.44,0.00045479,120]
[392078425,1761137465579,-804.93,0.00045479,120]
[392078426,1761137465588,-739.04,0.00045479,120]
[392078427,1761137465598,-506.05785992,0.00045479,120]
[392078428,1761137465607,-500.0,0.00045479,120]
[392078429,1761137465616,-771.06,0.00045479,120]
[392078430,1761137465626,-794.03,0.00045479,120]
[392078431,1761137465635,-1137.8,0.00045479,120]
[392078432,1761137465645,-500.0,0.00045479,120]
[392078433,1761137465655,-500.0,0.00045479,120]
[392078434,1761137465664,-935.82,0.00045479,120]
[392078435,1761137465673,-500.0,0.00045479,120]
[392078436,1761137465683,-835.83,0.00045479,120]
[392078437,1761137465692,-1199.67,0.00045479,120]
[392078438,1761137465702,-696.26,0.00045479,120]
[392078439,1761137465711,-652.36,0.00045479,120]
[392078440,1761137465721,-500.0,0.00045479,120]
[392078441,1761137465730,-1077.51,0.00045479,120]
[392078442,1761137465740,-1098.31,0.00045479,120]
[392078443,1761137465749,-866.75,0.00045479,120]
[392078444,1761137465759,-500.0,0.00045479,120]
[392078445,1761137465768,-506.32648305,0.00045479,120]
[392078446,1761137465782,-500.0,0.00045479,120]
[392078447,1761137465792,-899.21,0.00045479,120]
[392078448,1761137465801,-683.69,0.00045479,120]
[392078449,1761137465810,-901.18,0.00045479,120]
[392078450,1761137465821,-500.0,0.00045479,120]
[392078451,1761137465831,-1139.36,0.00045479,120]
[392078452,1761137465840,-978.62,0.00045479,120]
[392078453,1761137465849,-500.0,0.00045479,120]
[392078454,1761137465859,-637.57047397,0.00045479,120]
[392078455,1761137465868,-503.85,0.00045479,120]
[392078456,1761137465877,-500.0,0.00045479,120]
[392078457,1761137465887,-1709.15,0.00045479,120]
[392078458,1761137465901,-500.0,0.00045479,120]
[392078459,1761137465910,-500.0,0.00045479,120]
[392078460,1761137465921,-1255.83,0.00045479,120]
[392078461,1761137465931,-598.97,0.00045479,120]
[392078462,1761137465941,-500.0,0.00045479,120]
[392078463,1761137465952,-263.66830688,0.00045479,120]
[392078464,1761137465962,-500.0,0.00045479,120]
[392078465,1761137465973,-500.0,0.00045479,120]
[392078466,1761137465984,-500.0,0.00045479,120]
[392078467,1761137465995,-913.64,0.00045479,2]
[392078468,1761137466005,-500.0,0.00045479,120]
[392078469,1761137466014,-788.16,0.00045479,120]
[392078470,1761137466025,-500.0,0.00045479,120]
[392078471,1761137466034,-572.17,0.00045479,120]
[392078472,1761137466045,-500.0,0.00045479,120]
[392078473,1761137466055,-500.0,0.00045479,120]
[392078474,1761137466066,-1172.27,0.00045479,120]
[392078475,1761137466076,-500.0,0.00045479,120]
[392078476,1761137466086,-500.0,0.00045479,120]
[392078477,1761137466095,-822.33,0.00045479,120]
[392078478,1761137466106,-940.37,0.00045479,120]
[392078479,1761137466116,-500.0,0.00045479,120]
[392078480,1761137466126,-500.0,0.00045479,120]
[392078481,1761137466137,-1208.24,0.00045479,120]
[392078482,1761137466146,-647.81,0.00045479,120]
[392078483,1761137466156,-500.0,0.00045479,120]
[392078484,1761137466166,-500.0,0.00045479,120]
[392078485,1761137466176,-903.67,0.00045479,120]
[392078486,1761137466186,-587.93425713,0.00045479,120]
[392078487,1761137466196,-701.38,0.00045479,120]
[392078488,1761137466207,-500.0,0.00045479,120]
[392078489,1761137466216,-500.0,0.00045479,120]
[392078490,1761137466229,-726.04,0.00045479,120]
[392078491,1761137466239,-1257.65,0.00045479,120]
[392078492,1761137466251,-1171.07,0.00045479,120]
[392078493,1761137466260,-500.0,0.00045479,120]
[392078494,1761137466271,-500.0,0.00045479,7]
[392078495,1761137466281,-966.41,0.00045479,120]
[392078496,1761137466295,-500.0,0.00045479,120]
[392078497,1761137466305,-500.0,0.00045479,120]
[392078498,1761137466315,-838.16,0.00045479,120]
[392078499,1761137466324,-793.36,0.00045479,120]
[392078500,1761137466334,-650.24,0.00045479,120]
[392078501,1761137466343,-739.64,0.00045479,120]
[392078502,1761137466480,-1537.31,0.00045479,120]
[392078503,1761137466491,-500.0,0.00045479,120]
[392078504,1761137466501,-500.0,0.00045479,120]
[392078505,1761137466512,-1957.66,0.00045479,120]
[392078506,1761137466521,-439.0,0.00045479,120]
[392078507,1761137466531,-500.0,0.00045479,120]
[392078508,1761137466541,-509.30018009,0.00045479,16]
[392078509,1761137466551,-728.44,0.00045479,120]
[392078510,1761137466560,-500.0,0.00045479,120]
[392078511,1761137466570,-1020.65,0.00045479,120]
[392078512,1761137466580,-500.0,0.00045479,120]
[392078513,1761137466590,-500.0,0.00045479,120]
[392078514,1761137466600,-500.0,0.00045479,120]
[392078515,1761137466614,-500.0,0.00045479,120]
[392078516,1761137466625,-500.0,0.00045479,120]
[392078517,1761137466635,-500.0,0.00045479,120]
[392078518,1761137466646,-500.0,0.00045479,120]
[392078519,1761137466655,-500.0,0.00045479,120]
[392078520,1761137466665,-1283.72,0.00045479,120]
[392078521,1761137466674,-507.24,0.00045479,120]
[392078522,1761137466683,-500.0,0.00045479,120]
[392078523,1761137466693,-500.0,0.00045479,120]
[392078524,1761137466703,-1791.81,0.00045479,120]
[392078525,1761137466713,-516.69,0.00045479,120]
[392078526,1761137466723,-500.0,0.00045479,120]
[392078527,1761137466733,-1704.96,0.00045479,120]
[392078528,1761137466743,-774.46,0.00045479,120]
[392078529,1761137466753,-684.88,0.00045479,120]
[392078530,1761137466763,-903.57,0.00045479,120]
[392078531,1761137466773,-436.71928944,0.00045479,120]
[392078532,1761137466787,-500.0,0.00045479,120]
[392078533,1761137466798,-500.0,0.00045479,120]
[392078534,1761137466807,-500.0,0.00045479,120]
[392078535,1761137466818,-500.0,0.00045479,120]
[392078536,1761137466832,-500.08,0.00045479,120]
[392078537,1761137466844,-500.0,0.00045479,120]
[392078538,1761137466855,-976.02,0.00045479,120]
[392078539,1761137466865,-1123.28,0.00045479,120]
[392078540,1761137466877,-791.42,0.00045479,120]
[392078541,1761137466888,-500.0,0.00045479,120]
[392078542,1761137466899,-1380.66,0.00045479,120]
[392078543,1761137466909,-500.0,0.00045479,120]
[392078544,1761137466919,-777.97,0.00045479,120]
[392078545,1761137466928,-1069.18,0.00045479,120]
[392078546,1761137466939,-550.13,0.00045479,120]
[392078547,1761137466948,-500.0,0.00045479,120]
[392078548,1761137466958,-500.0,0.00045479,120]
[392078549,1761137466969,-500.0,0.00045479,120]
[392078550,1761137466979,-500.0,0.00045479,120]
[392078551,1761137466989,-224.26857366,0.00045479,120]
[392078552,1761137466999,-657.62,0.00045479,120]
[392078553,1761137467008,-500.0,0.00045479,120]
[392078554,1761137467018,-741.11,0.00045479,120]
[392078555,1761137467028,-546.69,0.00045479,120]
[392078556,1761137467038,-868.99,0.00045479,120]
[392078557,1761137467047,-500.0,0.00045479,120]
[392078558,1761137467056,-749.46,0.00045479,120]
[392078559,1761137467067,-500.0,0.00045479,120]
[392078560,1761137467077,-1632.62,0.00045479,120]
[392078561,1761137467087,-1268.92,0.00045479,120]
[392078562,1761137467097,-1515.76,0.00045479,120]
[392078563,1761137467106,-500.0,0.00045479,120]
[392078564,1761137467116,-500.0,0.00045479,120]
[392078565,1761137467126,-1021.54,0.00045479,120]
[392078566,1761137467135,-500.0,0.00045479,120]
[392078567,1761137467145,-500.0,0.00045479,120]
[392078568,1761137467155,-589.57,0.00045499,120]
[392078569,1761137467164,-500.0,0.00045499,120]
[392078570,1761137467174,-500.0,0.00045499,120]
[392078571,1761137467185,-500.0,0.00045499,120]
[392078572,1761137467195,-500.0,0.00045499,120]
[392078573,1761137467206,-508.73525137,0.00045499,120]
[392078574,1761137467216,-1000000.0,0.000455,120]
[392078575,1761137467226,-688.01253649,0.00045568,15]
[392078576,1761137467236,-417.78101719,0.00045608,28]
[392078577,1761137467245,-896.05912883,0.00045611,30]
[392078578,1761137467254,-374.68584808,0.00045653,15]
[392078579,1761137467263,-683.25,0.00045753,120]
[392078580,1761137467273,-668.65,0.00045753,60]
[392078581,1761137467282,-500.0,0.00045753,120]
[392078582,1761137467292,-500.0,0.00045753,120]
[392078583,1761137467302,-500.0,0.00045753,120]
[392078584,1761137467311,-500.0,0.00045753,120]
[392078585,1761137467321,-504.28,0.00045753,120]
[392078586,1761137467331,-500.0,0.00045753,120]
[392078587,1761137467341,-500.0,0.00045753,120]
[392078588,1761137467353,-526.03226536,0.00045753,120]
[392078589,1761137467363,-500.0,0.00045753,120]
[392078590,1761137467373,-500.0,0.00045753,30]
[392078591,1761137467382,-500.0,0.00045753,120]
[392078592,1761137467391,-678.16,0.00045753,120]
[392078593,1761137467401,-953.82,0.00045753,120]
[392078594,1761137467412,-1131.8,0.00045753,120]
[392078595,1761137467422,-538.28,0.00045753,120]
[392078596,1761137467431,-500.0,0.00045753,120]
[392078597,1761137467440,-1212.18,0.00045753,120]
[392078598,1761137467450,-597.0,0.00045753,120]
[392078599,1761137467459,-500.0,0.00045753,120]
[392078600,1761137467469,-971.57,0.00045753,120]
[392078601,1761137467479,-500.0,0.00045753,120]
[392078602,1761137467489,-500.0,0.00045753,120]
[392078603,1761137467498,-500.0,0.00045753,2]
[392078604,1761137467508,-500.0,0.00045753,2]
[392078605,1761137467518,-500.0,0.00045753,120]
[392078606,1761137467528,-500.0,0.00045753,90]
[392078607,1761137467538,-506.07,0.00045753,120]
[392078608,1761137467547,-500.0,0.00045753,120]
[392078609,1761137467556,-520.15237295,0.00045753,120]
[392078610,1761137467566,-500.0,0.00045753,120]
[392078611,1761137467576,-500.0,0.00045753,120]
[392078612,1761137467585,-787.36,0.00045753,120]
[392078613,1761137467594,-654.91,0.00045753,120]
[392078614,1761137467604,-609.54,0.00045753,120]
[392078615,1761137467614,-1546.84,0.00045753,120]
[392078616,1761137467623,-512.22,0.00045753,120]
[392078617,1761137467632,-500.0,0.00045753,120]
[392078618,1761137467642,-500.0,0.00045753,120]
[392078619,1761137467652,-584.83,0.00045753,120]
[392078620,1761137467661,-300.0,0.00045753,120]
[392078621,1761137467671,-500.0,0.00045753,120]
[392078622,1761137467680,-500.0,0.00045753,12]
[392078623,1761137467689,-539.75608841,0.00045753,120]
[392078624,1761137467698,-500.0,0.00045753,120]
[392078625,1761137467708,-500.0,0.00045753,120]
[392078626,1761137467718,-522.13273552,0.00045753,120]
[392078627,1761137467728,-537.03,0.00045753,120]
[392078628,1761137467737,-500.0,0.00045753,120]
[392078629,1761137467747,-1006.19,0.00045753,120]
[392078630,1761137467756,-500.0,0.00045753,120]
[392078631,1761137467766,-768.78,0.00045753,120]
[392078632,1761137467780,-515.05,0.00045753,120]
[392078633,1761137467789,-888.55,0.00045753,120]
[392078634,1761137467799,-1783.82,0.00045753,120]
[392078635,1761137467808,-1004.91,0.00045753,120]
[392078636,1761137467819,-902.56,0.00045753,120]
[392078637,1761137467828,-500.0,0.00045753,120]
[392078638,1761137467838,-500.0,0.00045753,120]
[392078639,1761137467847,-797.64,0.00045753,120]
[392078640,1761137467859,-727.22,0.00045753,120]
[392078641,1761137467869,-500.0,0.00045753,120]
[392078642,1761137467878,-500.0,0.00045753,120]
[392078643,1761137467888,-596.43,0.00045753,30]
[392078644,1761137467897,-839.78,0.00045753,120]
[392078645,1761137467907,-1567.44,0.00045753,120]
[392078646,1761137467917,-978.8,0.00045753,120]
[392078647,1761137467926,-550.93,0.00045753,120]
[392078648,1761137467936,-269.97022214,0.00045753,120]
[392078649,1761137467946,-1200.44,0.00045753,120]
[392078650,1761137467956,-804.93,0.00045753,120]
[392078651,1761137467966,-739.04,0.00045753,120]
[392078652,1761137467975,-500.0,0.00045753,120]
[392078653,1761137467984,-771.06,0.00045753,120]
[392078654,1761137467994,-794.03,0.00045753,120]
[392078655,1761137468003,-1137.8,0.00045753,120]
[392078656,1761137468013,-500.0,0.00045753,120]
[392078657,1761137468022,-600.44393757,0.00045753,120]
[392078658,1761137468031,-935.82,0.00045753,120]
[392078659,1761137468040,-500.0,0.00045753,120]
[392078660,1761137468050,-835.83,0.00045753,120]
[392078661,1761137468060,-1199.67,0.00045753,120]
[392078662,1761137468069,-696.26,0.00045753,120]
[392078663,1761137468080,-652.36,0.00045753,120]
[392078664,1761137468089,-500.0,0.00045753,120]
[392078665,1761137468099,-1077.51,0.00045753,120]
[392078666,1761137468109,-1098.31,0.00045753,120]
[392078667,1761137468118,-866.75,0.00045753,120]
[392078668,1761137468128,-529.22990904,0.00045753,120]
[392078669,1761137468137,-500.0,0.00045753,120]
[392078670,1761137468147,-899.21,0.00045753,120]
[392078671,1761137468157,-683.69,0.00045753,120]
[392078672,1761137468166,-901.18,0.00045753,120]
[392078673,1761137468176,-171.70409336,0.00045753,120]
[392078674,1761137468186,-1139.36,0.00045753,120]
[392078675,1761137468195,-978.62,0.00045753,120]
[392078676,1761137468206,-500.0,0.00045753,120]
[392078677,1761137468215,-503.85,0.00045753,120]
[392078678,1761137468225,-1709.15,0.00045753,120]
[392078679,1761137468235,-500.0,0.00045753,120]
[392078680,1761137468245,-1255.83,0.00045753,120]
[392078681,1761137468255,-598.97,0.00045753,120]
[392078682,1761137468265,-500.0,0.00045753,120]
[392078683,1761137468275,-500.0,0.00045753,120]
[392078684,1761137468285,-500.0,0.00045753,120]
[392078685,1761137468295,-500.0,0.00045753,120]
[392078686,1761137468304,-913.64,0.00045753,2]
[392078687,1761137468314,-500.0,0.00045753,120]
[392078688,1761137468324,-788.16,0.00045753,120]
[392078689,1761137468334,-500.0,0.00045753,120]
[392078690,1761137468344,-572.17,0.00045753,120]
[392078691,1761137468354,-500.0,0.00045753,120]
[392078692,1761137468364,-500.0,0.00045753,120]
[392078693,1761137468375,-1172.27,0.00045753,120]
[392078694,1761137468384,-500.0,0.00045753,120]
[392078695,1761137468394,-500.0,0.00045753,120]
[392078696,1761137468404,-822.33,0.00045753,120]
[392078697,1761137468415,-940.37,0.00045753,120]
[392078698,1761137468425,-345.58754071,0.00045753,120]
[392078699,1761137468435,-500.0,0.00045753,120]
[392078700,1761137468445,-1208.24,0.00045753,120]
[392078701,1761137468455,-647.81,0.00045753,120]
[392078702,1761137468464,-500.0,0.00045753,120]
[392078703,1761137468474,-500.0,0.00045753,120]
[392078704,1761137468484,-903.67,0.00045753,120]
[392078705,1761137468495,-701.38,0.00045753,120]
[392078706,1761137468505,-500.0,0.00045753,120]
[392078707,1761137468516,-500.0,0.00045753,120]
[392078708,1761137468526,-726.04,0.00045753,120]
[392078709,1761137468537,-1257.65,0.00045753,120]
[392078710,1761137468547,-1171.07,0.00045753,120]
[392078711,1761137468557,-500.0,0.00045753,120]
[392078712,1761137468567,-509.30503072,0.00045753,7]
[392078713,1761137468576,-966.41,0.00045753,120]
[392078714,1761137468697,-500.0,0.00045753,120]
[392078715,1761137468708,-500.0,0.00045753,120]
[392078716,1761137468718,-838.16,0.00045753,120]
[392078717,1761137468728,-793.36,0.00045753,120]
[392078718,1761137468738,-650.24,0.00045753,120]
[392078719,1761137468749,-739.64,0.00045753,120]
[392078720,1761137468759,-1537.31,0.00045753,120]
[392078721,1761137468768,-500.0,0.00045753,120]
[392078722,1761137468781,-500.0,0.00045753,120]
[392078723,1761137468792,-1957.66,0.00045753,120]
[392078724,1761137468802,-500.0,0.00045753,120]
[392078725,1761137468812,-728.44,0.00045753,120]
[392078726,1761137468823,-500.0,0.00045753,120]
[392078727,1761137468833,-1020.65,0.00045753,120]
[392078728,1761137468843,-500.0,0.00045753,120]
[392078729,1761137468853,-500.0,0.00045753,120]
[392078730,1761137468864,-500.0,0.00045753,120]
[392078731,1761137468875,-500.0,0.00045753,120]
[392078732,1761137468886,-500.0,0.00045753,120]
[392078733,1761137468896,-500.0,0.00045753,120]
[392078734,1761137468905,-500.0,0.00045753,120]
[392078735,1761137468915,-500.0,0.00045753,120]
[392078736,1761137468924,-1283.72,0.00045753,120]
[392078737,1761137468934,-507.24,0.00045753,120]
[392078738,1761137468945,-500.0,0.00045753,120]
[392078739,1761137468955,-500.0,0.00045753,120]
[392078740,1761137468965,-1791.81,0.00045753,120]
[392078741,1761137468975,-516.69,0.00045753,120]
[392078742,1761137468985,-320.25290389,0.00045753,120]
[392078743,1761137468995,-1704.96,0.00045753,120]
[392078744,1761137469006,-774.46,0.00045753,120]
[392078745,1761137469016,-684.88,0.00045753,120]
[392078746,1761137469026,-903.57,0.00045753,120]
[392078747,1761137469036,-500.0,0.00045753,120]
[392078748,1761137469046,-500.0,0.00045753,120]
[392078749,1761137469055,-500.0,0.00045753,120]
[392078750,1761137469065,-230.63550738,0.00045753,120]
[392078751,1761137469075,-500.08,0.00045753,120]
[392078752,1761137469084,-500.0,0.00045753,120]
[392078753,1761137469094,-976.02,0.00045753,120]
[392078754,1761137469103,-1123.28,0.00045753,120]
[392078755,1761137469113,-791.42,0.00045753,120]
[392078756,1761137469123,-254.87069447,0.00045753,120]
[392078757,1761137469133,-1380.66,0.00045753,120]
[392078758,1761137469143,-500.0,0.00045753,120]
[392078759,1761137469152,-777.97,0.00045753,120]
[392078760,1761137469163,-1069.18,0.00045753,120]
[392078761,1761137469173,-550.13,0.00045753,120]
[392078762,1761137469182,-634.385178,0.00045753,120]
[392078763,1761137469192,-500.0,0.00045753,120]
[392078764,1761137469203,-500.0,0.00045753,120]
[392078765,1761137469213,-500.0,0.00045753,120]
[392078766,1761137469222,-657.62,0.00045753,120]
[392078767,1761137469232,-500.0,0.00045753,120]
[392078768,1761137469241,-741.11,0.00045753,120]
[392078769,1761137469251,-546.69,0.00045753,120]
[392078770,1761137469261,-868.99,0.00045753,120]
[392078771,1761137469271,-500.0,0.00045753,120]
[392078772,1761137469280,-749.46,0.00045753,120]
[392078773,1761137469290,-500.0,0.00045753,120]
[392078774,1761137469300,-1632.62,0.00045753,120]
[392078775,1761137469309,-1268.92,0.00045753,120]
[392078776,1761137469319,-1515.76,0.00045753,120]
[392078777,1761137469329,-500.0,0.00045753,120]
[392078778,1761137469339,-500.0,0.00045753,120]
[392078779,1761137469350,-1021.54,0.00045753,120]
[392078780,1761137469359,-500.0,0.00045753,120]
[392078781,1761137469369,-500.0,0.00045753,120]
[392078782,1761137469379,-185.05,0.000459,23]
[392078783,1761137469388,-251.23240262,0.000459,120]
[392078784,1761137469397,-251.23240262,0.000459,120]
[392078785,1761137469407,-251.23240262,0.000459,120]
[392078786,1761137469416,-251.23240262,0.000459,120]
[392078787,1761137469426,-251.23240262,0.000459,120]
[392078788,1761137469436,-251.23240262,0.000459,120]
[392078789,1761137469446,-251.23240262,0.000459,120]
[392078790,1761137469455,-251.23240262,0.000459,120]
[392078791,1761137469465,-251.23240262,0.000459,120]
[392078792,1761137469475,-251.23240262,0.000459,120]
[392078793,1761137469485,-251.23240262,0.000459,120]
[392078794,1761137469495,-251.23240262,0.000459,120]
[392078795,1761137469505,-251.23240262,0.000459,120]
[392078796,1761137469515,-251.23240262,0.000459,120]
[392078797,1761137469525,-251.23240262,0.000459,120]
[392078798,1761137469536,-166.47295966,0.000459,120]
[392078799,1761137469546,-374.68584808,0.00045927,15]
[392078800,1761137469556,-688.01253649,0.00045927,15]
[392078801,1761137469566,-251.23240262,0.00045984,120]
[392078802,1761137469576,-1000000.0,0.00046,120]
[392078803,1761137469586,-518.6233527,0.00046016,10]
[392078804,1761137469595,-683.25,0.00046027,120]
[392078805,1761137469604,-668.65,0.00046027,60]
[392078806,1761137469613,-500.0,0.00046027,120]
[392078807,1761137469622,-500.0,0.00046027,120]
[392078808,1761137469631,-500.0,0.00046027,120]
[392078809,1761137469641,-500.0,0.00046027,120]
[392078810,1761137469650,-504.28,0.00046027,120]
[392078811,1761137469659,-500.0,0.00046027,120]
[392078812,1761137469668,-500.0,0.00046027,120]
[392078813,1761137469676,-500.0,0.00046027,120]
[392078814,1761137469686,-500.0,0.00046027,30]
[392078815,1761137469695,-646.95952939,0.00046027,120]
[392078816,1761137469706,-678.16,0.00046027,120]
[392078817,1761137469715,-953.82,0.00046027,120]
[392078818,1761137469724,-1131.8,0.00046027,120]
[392078819,1761137469734,-538.28,0.00046027,120]
[392078820,1761137469744,-500.0,0.00046027,120]
[392078821,1761137469754,-1212.18,0.00046027,120]
[392078822,1761137469763,-512.01435097,0.00046027,120]
[392078823,1761137469773,-971.57,0.00046027,120]
[392078824,1761137469787,-500.0,0.00046027,120]
[392078825,1761137469797,-500.0,0.00046027,120]
[392078826,1761137469807,-592.05,0.00046027,2]
[392078827,1761137469817,-500.0,0.00046027,120]
[392078828,1761137469829,-500.0,0.00046027,90]
[392078829,1761137469839,-506.07,0.00046027,120]
[392078830,1761137469850,-500.0,0.00046027,120]
[392078831,1761137469859,-500.0,0.00046027,120]
[392078832,1761137469868,-500.0,0.00046027,120]
[392078833,1761137469879,-787.36,0.00046027,120]
[392078834,1761137469888,-654.91,0.00046027,120]
[392078835,1761137469898,-609.54,0.00046027,120]
[392078836,1761137469907,-1546.84,0.00046027,120]
[392078837,1761137469917,-512.22,0.00046027,120]
[392078838,1761137469927,-641.69763614,0.00046027,120]
[392078839,1761137469936,-500.0,0.00046027,120]
[392078840,1761137469946,-584.83,0.00046027,120]
[392078841,1761137469955,-300.0,0.00046027,120]
[392078842,1761137469965,-500.0,0.00046027,120]
[392078843,1761137469974,-500.0,0.00046027,12]
[392078844,1761137469984,-500.0,0.00046027,120]
[392078845,1761137469994,-500.0,0.00046027,120]
[392078846,1761137470004,-537.03,0.00046027,120]
[392078847,1761137470013,-500.0,0.00046027,120]
[392078848,1761137470024,-1006.19,0.00046027,120]
[392078849,1761137470034,-500.0,0.00046027,120]
[392078850,1761137470043,-768.78,0.00046027,120]
[392078851,1761137470053,-515.05,0.00046027,120]
[392078852,1761137470062,-888.55,0.00046027,120]
[392078853,1761137470071,-1783.82,0.00046027,120]
[392078854,1761137470081,-1004.91,0.00046027,120]
[392078855,1761137470090,-902.56,0.00046027,120]
[392078856,1761137470100,-500.0,0.00046027,120]
[392078857,1761137470109,-500.0,0.00046027,120]
[392078858,1761137470119,-797.64,0.00046027,120]
[392078859,1761137470128,-727.22,0.00046027,120]
[392078860,1761137470138,-500.0,0.00046027,120]
[392078861,1761137470147,-500.0,0.00046027,120]
[392078862,1761137470156,-596.43,0.00046027,30]
[392078863,1761137470166,-839.78,0.00046027,120]
[392078864,1761137470175,-1567.44,0.00046027,120]
[392078865,1761137470185,-978.8,0.00046027,120]
[392078866,1761137470194,-550.93,0.00046027,120]
[392078867,1761137470203,-1200.44,0.00046027,120]
[392078868,1761137470213,-804.93,0.00046027,120]
[392078869,1761137470222,-739.04,0.00046027,120]
[392078870,1761137470232,-500.0,0.00046027,120]
[392078871,1761137470242,-771.06,0.00046027,120]
[392078872,1761137470252,-794.03,0.00046027,120]
[392078873,1761137470261,-1137.8,0.00046027,120]
[392078874,1761137470271,-500.0,0.00046027,120]
[392078875,1761137470280,-935.82,0.00046027,120]
[392078876,1761137470289,-154.00171797,0.00046027,120]
[392078877,1761137470298,-835.83,0.00046027,120]
[392078878,1761137470308,-1199.67,0.00046027,120]
[392078879,1761137470316,-696.26,0.00046027,120]
[392078880,1761137470325,-652.36,0.00046027,120]
[392078881,1761137470335,-500.0,0.00046027,120]
[392078882,1761137470345,-1077.51,0.00046027,120]
[392078883,1761137470354,-1098.31,0.00046027,120]
[392078884,1761137470363,-866.75,0.00046027,120]
[392078885,1761137470373,-500.0,0.00046027,120]
[392078886,1761137470382,-899.21,0.00046027,120]
[392078887,1761137470391,-683.69,0.00046027,120]
[392078888,1761137470402,-901.18,0.00046027,120]
[392078889,1761137470412,-1139.36,0.00046027,120]
[392078890,1761137470422,-978.62,0.00046027,120]
[392078891,1761137470431,-500.0,0.00046027,120]
[392078892,1761137470440,-503.85,0.00046027,120]
[392078893,1761137470450,-1709.15,0.00046027,120]
[392078894,1761137470459,-500.0,0.00046027,120]
[392078895,1761137470468,-1255.83,0.00046027,120]
[392078896,1761137470477,-598.97,0.00046027,120]
[392078897,1761137470487,-500.0,0.00046027,120]
[392078898,1761137470497,-500.0,0.00046027,120]
[392078899,1761137470507,-500.0,0.00046027,120]
[392078900,1761137470516,-500.0,0.00046027,120]
[392078901,1761137470526,-913.64,0.00046027,2]
[392078902,1761137470537,-500.0,0.00046027,120]
[392078903,1761137470547,-788.16,0.00046027,120]
[392078904,1761137470557,-500.0,0.00046027,120]
[392078905,1761137470570,-572.17,0.00046027,120]
[392078906,1761137470579,-368.7435861,0.00046027,120]
[392078907,1761137470589,-500.0,0.00046027,120]
[392078908,1761137470599,-1172.27,0.00046027,120]
[392078909,1761137470717,-500.0,0.00046027,120]
[392078910,1761137470727,-244.38911256,0.00046027,120]
[392078911,1761137470738,-822.33,0.00046027,120]
[392078912,1761137470747,-940.37,0.00046027,120]
[392078913,1761137470757,-500.0,0.00046027,120]
[392078914,1761137470768,-1208.24,0.00046027,120]
[392078915,1761137470783,-647.81,0.00046027,120]
[392078916,1761137470793,-500.0,0.00046027,120]
[392078917,1761137470803,-576.72178223,0.00046027,120]
[392078918,1761137470812,-903.67,0.00046027,120]
[392078919,1761137470823,-701.38,0.00046027,120]
[392078920,1761137470834,-500.0,0.00046027,120]